Cogmind - Beta 16 @@@ ROGUE MODE // 2025.11.24 @ 23:26:17 Player: OBLIQUE Result: Destroyed by as-70082 with Assembled Blade Performance ------------- Evolutions (0) 0 Regions Visited (2) 400 Robots Destroyed (10) 50 Value Destroyed (191) 191 Prototype IDs (0) 0 Alien Tech Used (0) 0 Bonus (39) 39 TOTAL SCORE: 680 Bonus ------- Follower Combat Kills 39 Cogmind --------- Core Integrity 0/250 Matter 270/300 Energy 60/100 System Corruption 0% Temperature Cool (0) Movement Walking (120) Location -10/Mines Parts ------- > --- POWER (1) -------- (None) > --- PROPULSION (2) --- Aluminum Leg > --- UTILITY (2) ------ Scrap Suit > --- WEAPON (2) ------- Welding Torch > --- INVENTORY (5) ---- Ion Engine Propulsion Shielding Peak State ------------ > --- POWER ------------ Light Nuclear Core > --- PROPULSION ------- Compact Wheel > --- UTILITY ---------- Large Storage Unit Visual Processing Unit > --- WEAPON ----------- Small Laser Light Assault Rifle > --- INVENTORY -------- Ion Engine Aluminum Leg Aluminum Leg Scrap Suit Small Storage Unit High-capacity Battery Small Matter Pod Propulsion Shielding Light Armor Plating [Rating: 10] Favorites ----------- Power Ion Engine Engine Ion Engine Power Core Light Nuclear Core Propulsion Compact Wheel Leg Aluminum Leg Wheel Compact Wheel Utility Visual Processing Unit Device Scrap Suit Storage Large Storage Unit Processor Visual Processing Unit Protection Light Armor Plating Weapon Light Assault Rifle Energy Gun Small Laser Ballistic Gun Light Assault Rifle Special Weapon Welding Torch Build | -11 -10 -10 ------- Run | Yrd Mat Min Slots Evolved . | . . . Power . | . . . Propulsion . | . . . Utility . | . . . Weapon . | . . . Parts Attached 16 | 5 7 4 Power 3 | . 3 . Engine 2 | . 2 . Core 1 | . 1 . Reactor . | . . . Propulsion 4 | 2 . 2 Treads . | . . . Leg 2 | . . 2 Wheel 2 | 2 . . Hover . | . . . Flight . | . . . Utility 5 | 1 3 1 Device 1 | . . 1 Storage 2 | 1 1 . Processor 1 | . 1 . Hackware . | . . . Protection 1 | . 1 . Artifact . | . . . Weapon 4 | 2 1 1 Energy Gun 2 | 1 1 . Energy Cannon . | . . . Ballistic Gun 1 | 1 . . Ballistic Cannon . | . . . Launcher . | . . . Special Weapon 1 | . . 1 Impact Weapon . | . . . Slashing Weapon . | . . . Piercing Weapon . | . . . Special Melee Weapon . | . . . Unidentified Prototypes . | . . . Parts Lost 6 | . 2 4 Power 1 | . . 1 Propulsion 3 | . 1 2 Utility . | . . . Weapon 2 | . 1 1 Highest Loss Streak 4 | . 2 4 To Critical Strikes . | . . . Average Backups 7 | 3 7 8 Power 1 | 1 1 1 Propulsion 1 | 1 2 1 Utility 3 | . 3 5 Weapon . | . . . Tool/Special . | . . . Unused Backups 6 | 1 1 4 Power . | . . . Propulsion 1 | 1 . . Utility 3 | . . 3 Weapon 2 | . 1 1 Tool/Special . | . . . Average Slot Usage (%) 81 | . 87 71 Engine 6 | . 9 . Core 5 | . 2 10 Wheel 20 | . 25 11 Storage 12 | . 14 11 Processor 9 | . 8 11 Energy Gun 12 | . 12 11 Ballistic Gun 12 | . 14 11 Peak Build Rating 10 | 5 9 10 Average Rating 7 | 3 7 9 On Entrance 4 | . 5 9 Avg Prop Armor Cover (%) . | . . . Naked Turns 12 | . . 12 Heaviest Build 27 | 7 27 27 Greatest Support 26 | 26 26 16 Greatest Overweight (x) 2 | . 1 2 Average Overweight (x) . | . . . Largest Inventory Capacity 15 | 8 15 15 Average Capacity 10 | 6 10 12 Most Carried 11 | 6 9 11 Average Carried 7 | 3 7 8 Final Capacity 15 | 8 15 5 Final Carried 8 | 5 8 2 Scrap Suit Usage (%) 5 | . . 15 Class Distribution -------------------- 96% | Mutant 3% | Scrapper Dominant Class ---------------- Mutant | -10/Materials Mutant | -10/Mines Resources | -11 -10 -10 ----------- Run | Yrd Mat Min Matter Collected 400 | 172 228 . Remotely . | . . . Salvage Created 241 | . 241 . Parts 17 | . 17 . Haulers Intercepted . | . . . Recyclers Shooed 1 | . 1 . Parts Field Recycled . | . . . Retrieved Matter . | . . . Parts Self-Destructed . | . . . Prevented . | . . . Parts Restored . | . . . Kills | -11 -10 -10 ------- Run | Yrd Mat Min Combat Hostiles Destroyed 9 | . 9 . Guns 9 | . 9 . Classes Destroyed 3 | . 3 . Watcher 1 | . 1 . Swarmer 6 | . 6 . Grunt 3 | . 3 . Best Kill Streak 3 | . 3 . Combat Bots Only 3 | . 3 . Max Kills in Single Turn 1 | . 1 . Gunslinging . | . . . Exploded . | . . . Melee . | . . . Uniques/NPCs Destroyed . | . . . Combat | -11 -10 -10 -------- Run | Yrd Mat Min Hostile Shots Fired 69 | . 45 24 Missed 21 | . 15 6 Hits 48 | . 30 18 Melee 3 | . . 3 Projectile 45 | . 30 15 AOE 8 | . . 8 Damage Taken 803 | . 317 486 Core 279 | . 78 201 Absorbed by Shields . | . . . Core Remaining (%) 100 | 100 . . Volleys Fired 36 | . 30 6 Largest 2 | . 2 2 Hottest 60 | . 60 60 Shots Fired 64 | . 54 10 Gun 62 | . 54 8 Cannon . | . . . Launcher . | . . . Special 2 | . . 2 Kinetic 34 | . 30 4 Thermal 30 | . 24 6 Explosive . | . . . Electromagnetic . | . . . Robot Hit Streak 8 | . 8 . Robot Miss Streak 6 | . 6 . Penetration Max . | . . . Secondary Targets 3 | . 3 . Max Gunslinging Chain 1 | . 1 . Shots Hit Robots 27 | . 27 . Core Hits 16 | . 16 . Critical Kills . | . . . Critical Parts Destroyed . | . . . Critical Strikes . | . . . Melee Attacks . | . . . Impact . | . . . Slashing . | . . . Piercing . | . . . Sneak Attacks . | . . . Combat Hostiles . | . . . Follow-up Attacks . | . . . Damage Inflicted 283 | . 283 . Guns 283 | . 283 . Cannons . | . . . Explosions . | . . . Melee . | . . . Ramming . | . . . Kinetic 153 | . 153 . Thermal 130 | . 130 . Explosive . | . . . Electromagnetic . | . . . Impact . | . . . Slashing . | . . . Piercing . | . . . Highest Corruption . | . . . Average Corruption . | . . . Corruption Purged . | . . . Corruption Blocked . | . . . Overload Shots . | . . . Overflow Damage . | . . . Projectiles . | . . . Explosions . | . . . Melee . | . . . Knockbacks . | . . . Impact . | . . . Kinetic . | . . . Secondary . | . . . Self-Inflicted Damage . | . . . Shots . | . . . Rammed . | . . . Targets Rammed . | . . . Kicked . | . . . Crushed . | . . . Highest Temperature 109 | . 109 42 Average Temperature 29 | . 31 21 Received Heat Transfer 117 | . 117 . Siege Activations . | . . . Martial Activations . | . . . Shielding Activations . | . . . Robots Disrupted . | . . . Combat Hostiles . | . . . Robots Corrupted . | . . . Combat Hostiles . | . . . Parts Fried . | . . . Impact Corruptions . | . . . Robots Melted . | . . . Combat Hostiles . | . . . Parts Melted . | . . . Heat Transferred 300 | . 300 . Parts Sabotaged . | . . . Parts Stolen . | . . . Parts Stripped . | . . . Power Chain Reactions . | . . . Alert | -11 -10 -10 ------- Run | Yrd Mat Min Maximum Alert Level . | . . . Low Security (%) 100 | 100 100 100 Level 1 . | . . . Level 2 . | . . . Level 3 . | . . . Level 4 . | . . . Level 5 . | . . . High Security . | . . . Max Security . | . . . Peak Influence 122 | . 122 32 Initial 16 | . . 16 Average 42 | . 72 3 Influence Increases 274 | . 242 32 Destroy 0b10 Robot/C 200 | . 180 20 Destroy 0b10 Robot/NC 5 | . 5 . Destroy Leader 52 | . 42 10 Allied During Kill 2 | . . 2 Lose Combat Pursuer 15 | . 15 . Influence Decreases 274 | . 200 74 Entered New Map 26 | . . 26 Time Decay 208 | . 180 28 Lost Part 20 | . 20 . Lost Ally 20 | . . 20 Squads Dispatched 1 | . 1 . Investigation . | . . . Extermination . | . . . Reinforcement 1 | . 1 . Assault . | . . . Garrison . | . . . Intercept . | . . . Searches Triggered . | . . . Construction Impeded . | . . . Haulers Reinforced . | . . . Active Scanning Responses . | . . . Cargo Convoy Interrupts . | . . . Stealth | -11 -10 -10 --------- Run | Yrd Mat Min Distress Signals 1 | . 1 . Communications Jammed . | . . . Distress Signals . | . . . Times Spotted 35 | . 14 21 Peak Tracking Total 15 | . 4 15 Tactical Retreats 2 | . 1 1 Traps | -11 -10 -10 ------- Run | Yrd Mat Min Traps Triggered 1 | . 1 . Indirectly . | . . . Trap Hack Attempts . | . . . Triggered . | . . . Disarmed . | . . . Reprogrammed . | . . . Reused . | . . . Traps Extracted . | . . . Installed . | . . . Triggered . | . . . Machines | -11 -10 -10 ---------- Run | Yrd Mat Min Machines Disabled . | . . . Max in Single Turn . | . . . Machines Repaired . | . . . Machines Dismantled . | . . . Machines Sabotaged . | . . . Overloaded Fab Kills . | . . . Hacking | -11 -10 -10 --------- Run | Yrd Mat Min Machines Accessed 1 | . 1 . Terminals 1 | . 1 . Fabricators . | . . . Repair Stations . | . . . Recycling Units . | . . . Scanalyzers . | . . . Garrison Access . | . . . Total Hacks 1 | . 1 . Successful . | . . . Failed 1 | . 1 . Catastrophic 1 | . 1 . Database Lockouts . | . . . Manual 5 | . 5 . Terminals 1 | . 1 . Fabricators . | . . . Repair Stations . | . . . Recycling Units . | . . . Scanalyzers . | . . . Garrison Access . | . . . Terminal Hacks . | . . . Fabricator Hacks . | . . . Repair Station Hacks . | . . . Recycling Unit Hacks . | . . . Scanalyzer . | . . . Garrison Access Hacks . | . . . Unauthorized Hacks . | . . . Terminals . | . . . Fabricators . | . . . Repair Stations . | . . . Recycling Units . | . . . Scanalyzers . | . . . Garrison Access . | . . . Data Cores Recovered . | . . . Used . | . . . Hacking Detections 2 | . 2 . Full Trace Events 1 | . 1 . Feedback Events . | . . . Feedback Blocked . | . . . Robot Schematics Acquired . | . . . Robots Built . | . . . Authchips . | . . . Time . | . . . Total Robot Build Rating . | . . . Part Schematics Acquired . | . . . Parts Built . | . . . Authchips . | . . . Time . | . . . Total Part Build Rating . | . . . Part Studies Acquired . | . . . Parts Repaired . | . . . Time . | . . . Parts Recycled . | . . . Recycled Matter . | . . . Retrieved Matter . | . . . Retrieved Components . | . . . Parts Scanalyzed . | . . . Part Schematics Acquired . | . . . Parts Damaged . | . . . Bothacking | -11 -10 -10 ------------ Run | Yrd Mat Min Used RIF Installer . | . . . Robots Hacked . | . . . Non-combat . | . . . Combat . | . . . Robot Hacks Applied . | . . . Relay Couplers Released . | . . . Fabnet Peak Effective % . | . . . Robots Rewired . | . . . Allies Hacked . | . . . Hacks Repelled . | . . . Allies | -11 -10 -10 -------- Run | Yrd Mat Min Total Allies 2 | . . 2 Largest Group 2 | . . 2 Highest-Rated Group 48 | . . 48 Highest-Rated Ally 31 | . . 31 Total Orders . | . . . Ally Attacks 12 | . . 12 Total Damage 147 | . . 147 Kills 4 | . . 4 Allies Corrupted . | . . . Allies Melted . | . . . Intel | -11 -10 -10 ------- Run | Yrd Mat Min Active Infowar (turns) 411 | . 230 181 Optics 411 | . 230 181 Robot Analysis Total . | . . . Derelict Logs Recovered 1 | . . 1 Drone Launches . | . . . Drone Recoveries . | . . . Exploration | -11 -10 -10 ------------- Run | Yrd Mat Min Turns Passed 674 | 61 384 229 Spaces Moved 517 | 52 279 186 Core 30 | 6 . 24 Treads . | . . . Legs 28 | . . 28 Wheels 459 | 46 279 134 Hover . | . . . Flight . | . . . Fastest Speed 50 | 50 90 50 Average Speed 99 | 85 95 110 Slowest Speed 260 | 90 115 260 Overloaded Moves . | . . . Propulsion Burnouts . | . . . Robots Hopped . | . . . Potential Cave-ins . | . . . Cave-ins Triggered . | . . . Exploration Rate (%) 36 | 4 58 46 Regions Visited 2 Branch Regions 1 Pre-discovered Areas 1 | . . 1 Known Exits Taken . | . . . Unknown Exits Taken 2 | 1 1 . Scrap Searched 2 | . . 2 Spaces Dug . | . . . Terrain Destroyed . | . . . Melee . | . . . Projectile . | . . . AOE . | . . . Terrain Rammed . | . . . Walls Destroyed . | . . . Machines Disabled . | . . . Actions | -11 -10 -10 --------- Run | Yrd Mat Min Total 619 | 68 350 201 Wait 23 | . 21 2 Move 515 | 51 278 186 Hop . | . . . Pick Up 24 | 11 10 3 Fast Attach . | . . . Attach 15 | 5 6 4 Detach 1 | . 1 . Swap 2 | . 2 . Drop 3 | 1 2 . Fire 36 | . 30 6 Melee . | . . . Ram . | . . . Kick . | . . . Crush . | . . . Escape Stasis . | . . . Rewire . | . . . Trap . | . . . Miscellaneous . | . . . Route ------- -11/Scrapyard -10/Materials (discovered 4 exits: [*Mat x2] / [*Min x2]) -10/Mines (discovered 2 exits: [*Exi] / Sub) History --------- Turn | Location | Event 15 | -11/Scrapyard | Discovered new exit (range 16) 62 | -11/Scrapyard | Entered Materials 62 | -10/Materials | Discovered new exit (range 8) 171 | -10/Materials | Discovered new exit (range 12) 227 | -10/Materials | Discovered new exit (range 10) 313 | -10/Materials | Build established: Mutant 413 | -10/Materials | Discovered new exit (range 17) 446 | -10/Materials | Entered Mines 447 | -10/Mines | Learned location of Storage (-9) 464 | -10/Mines | Found a Scrap Suit stashed away for nefarious purposes 466 | -10/Mines | Found Scrap Suit 540 | -10/Mines | Identified exit to Subcaves 568 | -10/Mines | Assembled infested the area 573 | -10/Mines | Assisted by a Guerilla fighting off Assembled 591 | -10/Mines | Deemed a non-threat by the Exiles lab entrance 591 | -10/Mines | Discovered new exit (range 5) 618 | -10/Mines | Core integrity fell below 50% 627 | -10/Mines | Core integrity fell below 20% 627 | -10/Mines | Released all parts (3) 656 | -10/Mines | Lost 4 parts (1p2n1w) 675 | -10/Mines | Destroyed by as-70082 with Assembled Blade Last Messages --------------- 00626_ Knocked back. 00627_ The unstable cave ceiling collapses. 00627_ as-69201 destroyed. 00627_ Released Visual Processing Unit. 00627_ Released Lgt. Assault Rifle. 00627_ Released Lrg. Storage Unit. [Achievement: Live, Flee, And Rebuild] 00627_ Extracted 1 energy. 00629_ D-53 Grenadier destroyed. 00631_ T-07 Excavator is excavating. 00633_ U-05 Engineer lays Concrete. 00641_ Acquired Welding Torch. 00666_ R-06 Scavenger destroyed. 00669_ T-07 Excavator destroyed. 00669_ U-05 Engineer system corrupted by crushing effect. 00669_ U-05 Engineer knocked back. 00673_ U-05 Engineer system corrupted by crushing effect. 00673_ U-05 Engineer knocked back. Map ----- +----------------------------------------------------+ | | | | | | | | | | | | | | | | | | | | | | | | | | | | | | | | | | | | | ?????????????????????????????????????????????????? | | ???????????????????#####?????????????????????????? | | ??????????????????## ##????????????????????????? | | ??????????????????# ##???????????????????????? | | ??????????????????# ##??????????????????????? | | ??????????????????# #????????????####??????? | | ??????????????????# #???? ??????# <#??????? | | ????????????###??## @#??# >???## #???????? | | ???????????## ### a##??# ????# #???????? | | ???????????# ##???# ???## ##???????? | | ???????????# #????# ???# ###??????? | | ???????????# ! #??#### ##??## ###????? | | ???????? # =%= aa ##?## ##?## # ##???? | | ????????????## ## ##### ### #???? | | ?????????????##?## "% ! ## ##??? | | ???????????????##| a "!%= ##?? | | ??????????????##*%= ####### % ## #?? | | ?????????????## = ##??#### ##### # % % ### | | ????????????## ####??## ## ##??# ! % | | ??????????### ##?????# ## #### % | | ?????????## #??????# ![ # | | ?????????# #??????# ######![!! ####? | | ?????????# #??????# ######????##!### #???? | | ?????????## ##?????# ##??????????# #???##???? | | ??????????## ###???# ##??????????# #????????? | | ???????????## ##### ########???# ????????? | | ????????????# #######????????? | | ????????????## ##??????????? | | ?????????????# ####### #??????????? | | ?????????????## ##?????## ## #???????? | | ????????######## #??????## ##? % #??????? | | ???# %#####??# #?? #?????? | +----------------------------------------------------+ Best States ------------- Heat Dissipation 25 Energy Generation 14 Energy Capacity 250 Matter Stores 300 Matter Capacity 300 Sight Range 18 Terrain Scan Density 10 Evasion (%) 50 Item Schematics ----------------- None Robot Schematics ------------------ None Fabricated ------------ Nothing Repaired ---------- Nothing Studied --------- None Alien Tech Used ----------------- None Achievements -------------- Live, Flee, And Rebuild Challenges ------------ None Game ------ Seed jelqfart Manual? 1 Play Time 00:18:57 Cumulative 30.4 hours Start 2025.11.24 @ 23:03:56 End 2025.11.24 @ 23:26:17 Sessions 1 Manual Loads 0 Difficulty Rogue Special Mode None Game No. 14 Rogue 14 Adventurer 0 Explorer 0 Win Type - Total 1 Types 1/0/0/0/0/0/0/0/0/0 Lore% 16 Gallery% 27 Achievement% 27 Wizard Run 0 Options --------- Layout 1 ASCII 0 Keyboard 0 Movement Numpad Keybinds 0 Fullscreen 1 Font 24/Smallcaps Map View 50x35 Zoom Use 0% Tactical HUD 1 Map Filters NONE Filters NONE Steam 1 RUN: 490cef44-c838-4fc8-a268-756395b5db05